[Event "Chhattisgarh Masters GM 2022"]
[Site "Chhattisgarh"]
[Date "2022.09.21"]
[Round "3.6"]
[White "Neverov, Valeriy"]
[Black "Mayank Chakraborty"]
[Result "1/2-1/2"]
[ECO "A25"]
[WhiteElo "2430"]
[BlackElo "2044"]
[Annotator "TA"]
[PlyCount "91"]
[EventDate "2022.09.19"]
[EventCountry "IND"]
[SourceTitle "playchess.com"]
[Source "ChessBase"]
[SourceQuality "1"]
[TimeControl "5400+30"]

{[%evp 12,91,22,7,2,0,13,10,15,0,10,17,14,0,-9,0,0,0,0,0,28,28,27,29,43,43,60,62,62,58,46,50,57,54,54,21,12,9,18,7,15,14,15,10,11,4,9,0,0,0,0,0,0,0,12,10,15,0,0,0,26,0,0,0,4,0,0,0,0,0,77,0,0,0,0,0,0,0,0,0,0,0]} 1. c4 {[%emt 0:00:06]} e5 {[%emt 0:00:01]} 2. Nc3 {[%emt 0:00:17]} Nc6 {[%emt 0:00:02]} 3. g3 {[%emt 0:02:56]} Nf6 {[%emt 0:00:55]} 4. Bg2 {[%emt 0:00:10]} Bc5 {[%emt 0:01:20]} 5. e3 {[%emt 0:03:25]} O-O {[%emt 0:00:52]} 6. Nge2 {[%emt 0:00:34]} d5 {[%emt 0:03:54]} 7. cxd5 {[%emt 0:39:03]} Nb4 {[%emt 0:01:33] A25: English Opening vs King's Indian with ...Nc6 but without early d3.} 8. O-O {[%emt 0:00:31]} Nbxd5 {[%emt 0:00:16]} 9. d4 {[%emt 0:01:11]} exd4 {[%emt 0:00:08]} 10. exd4 {[%emt 0:00:38]} Be7 {[%emt 0:00:14]} 11. Nf4 {[%emt 0:01:14]} Nb6 {[%emt 0:10:13]} 12. h3 {[%emt 0:12:59]} c6 {[%emt 0:01:26]} 13. Re1 {[%emt 0:02:34] [#]} Bf5 $146 {[%emt 0:01:27]} ({Predecessor:} 13... Re8 14. Be3 Nc4 15. Qe2 Nxe3 16. fxe3 Bb4 17. Nd3 Bxc3 18. bxc3 Bf5 19. Ne5 Be4 20. Bxe4 Nxe4 {0-1 (70) Sourgkounis,A (1959)-Dijkhuis,T (2313) Paleochora 2015}) 14. g4 {[%emt 0:03:53]} Bd7 {[%emt 0:02:06]} 15. d5 {[%emt 0:13:04] [#] aiming for d6.} Nfxd5 16. Nfxd5 {[%emt 0:01:45]} (16. Ncxd5 {keeps more tension.} cxd5 17. Nxd5 Bc5 18. Be3) 16... cxd5 {[%emt 0:00:55]} 17. Nxd5 {[%emt 0:00:30]} Nxd5 {[%emt 0:04:13]} 18. Qxd5 {[%emt 0:00:06]} Bc6 {[%emt 0:01:30]} 19. Qxd8 {[%emt 0:00:57]} Bxd8 {[%emt 0:00:01]} 20. Bxc6 {[%emt 0:00:25]} bxc6 {[%emt 0:00:01]} 21. Be3 {[%emt 0:01:19] [#] Hoping for Bc5.} Bb6 {[%emt 0:01:37] Inhibits Bc5.} 22. Rac1 {[%emt 0:00:28]} Rac8 {[%emt 0:02:20]} 23. Bxb6 {[%emt 0:08:38]} axb6 $14 {[%emt 0:00:05][%mdl 4096] Endgame KRR-KRR} 24. Re7 {[%emt 0:00:44]} c5 {[%emt 0:01:47]} 25. Rd1 {[%emt 0:01:23]} Rc6 {[%emt 0:00:43]} 26. Kg2 {[%emt 0:00:27]} h6 {[%emt 0:03:31]} 27. Rdd7 {[%emt 0:01:19]} Rf6 {[%emt 0:00:32]} 28. Kg3 {[%emt 0:01:39]} Ra8 {[%emt 0:00:33]} 29. Ra7 {[%emt 0:02:07]} Rd8 {[%emt 0:02:05]} 30. Red7 {[%emt 0:00:29] Prevents Rd2.} Re8 {[%emt 0:00:07]} 31. Re7 {[%emt 0:00:35] Inhibits Re2.} Rd8 {[%emt 0:00:11]} 32. Rad7 {[%emt 0:00:26] Prevents Rd2.} Ra8 {[%emt 0:00:14]} 33. h4 {[%emt 0:00:36]} g6 {[%emt 0:10:03]} (33... Rxa2 $2 34. Re8+ Kh7 35. h5 $18) 34. Ra7 {[%emt 0:00:21]} Rd8 {[%emt 0:00:42]} 35. Rad7 {[%emt 0:00:26] Prevents Rd2.} Ra8 {[%emt 0:00:11]} 36. Ra7 {[%emt 0:00:08]} Rd8 {[%emt 0:00:04]} 37. Red7 {[%emt 0:00:28] Inhibits Rd2.} Re8 {[%emt 0:00:27]} 38. Rd3 {[%emt 0:01:05]} Kg7 {[%emt 0:02:20]} 39. Rf3 {[%emt 0:00:27]} Re2 {[%emt 0:00:53]} 40. b3 {[%emt 0:00:00]} b5 {[%emt 0:00:00]} (40... Rxf3+ $11 41. Kxf3 Rc2) 41. Ra5 {[%emt 0:00:00]} (41. Rxf6 $16 Kxf6 42. Ra5) 41... Rb6 $11 {[%emt 0:00:00] The position is equal.} 42. Rc3 {[%emt 0:00:00]} c4 {[%emt 0:00:00]} 43. bxc4 {[%emt 0:01:20]} bxc4 {[%emt 0:00:00]} 44. Rxc4 {[%emt 0:00:42]} Rbb2 {[%emt 0:00:00][%csl LRa2,LRf2]} 45. Rf4 {[%emt 0:00:56] Black must now prevent Ra7.} Rxa2 {[%emt 0:00:00]} 46. Rxa2 {[%emt 0:00:17] Weighted Error Value: White=0.06 (flawless) /Black=0.06 (flawless)} 1/2-1/2

[Event "Chhattisgarh Masters GM 2022"]
[Site "Chhattisgarh"]
[Date "2022.09.21"]
[Round "3.6"]
[White "Aradhya, Garg"]
[Black "Mitrabha, Guha"]
[Result "1/2-1/2"]
[ECO "E90"]
[WhiteElo "2332"]
[BlackElo "2471"]
[Annotator "TA"]
[PlyCount "264"]
[EventDate "2022.09.19"]
[EventCountry "IND"]
[SourceTitle "playchess.com"]
[Source "ChessBase"]
[SourceQuality "1"]
[TimeControl "5400+30"]

{[%evp 146,264,0,0,0,0,0,0,0,0,0,0,0,0,0,0,0,0,0,0,0,0,0,0,0,0,0,0,0,0,0,0,0,0,0,0,0,0,0,0,0,0,0,0,0,0,0,0,0,0,0,0,0,0,0,0,0,0,0,0,0,0,0,0,0,0,0,0,0,0,0,0,0,0,0,0,0,0,0,0,0,0,0,0,0,0,0,0,0,0,0,0,0,0,0,0,0,0,0,0,0,0,0,0,0,0,0,0,0,0,0,0,0,0,0,0,0,0,0,0,29983]} 1. c4 {[%emt 0:00:02]} c5 {[%emt 0:06:02]} 2. Nf3 {[%emt 0:00:23]} g6 {[%emt 0:00:20]} 3. d4 {[%emt 0:02:17]} Bg7 {[%emt 0:00:14]} 4. d5 {[%emt 0:00:53]} d6 {[%emt 0:00:42]} 5. e4 {[%emt 0:01:55]} Nf6 {[%emt 0:01:57]} 6. Nc3 {[%emt 0:02:29]} e6 {[%emt 0:00:23]} 7. dxe6 {[%emt 0:19:15]} Bxe6 {[%emt 0:00:04]} 8. Bf4 {[%emt 0:00:04]} Nc6 {[%emt 0:01:37]} 9. Qxd6 {[%emt 0:10:44]} Qa5 {[%emt 0:01:24]} 10. Bd2 {[%emt 0:03:57]} Rd8 {[%emt 0:03:01]} 11. Nb5 {[%emt 0:00:41]} Qxb5 {[%emt 0:18:44]} 12. Qxd8+ {[%emt 0:03:37]} Nxd8 {[%emt 0:00:02]} 13. cxb5 {[%emt 0:00:02]} Nxe4 {[%emt 0:00:01]} 14. Bd3 {[%emt 0:04:10]} Nxd2 {[%emt 0:02:19]} 15. Nxd2 {[%emt 0:00:18]} Bxb2 {[%emt 0:00:08]} 16. Rb1 {[%emt 0:00:02]} Bg7 {[%emt 0:00:27]} 17. Nc4 {[%emt 0:10:40]} Bd5 {[%emt 0:01:49]} 18. O-O {[%emt 0:00:30]} Ne6 {[%emt 0:00:13]} 19. b6 {[%emt 0:01:26]} axb6 {[%emt 0:09:10]} 20. Rxb6 {[%emt 0:00:16]} O-O {[%emt 0:00:40]} 21. Ne3 {[%emt 0:02:14]} Bxa2 {[%emt 0:00:19]} 22. Rxb7 {[%emt 0:00:02]} Ra8 {[%emt 0:02:01]} 23. Rb6 {[%emt 0:03:53]} Rd8 {[%emt 0:03:25]} 24. Bb1 {[%emt 0:03:03]} Ra8 {[%emt 0:02:53]} 25. Be4 {[%emt 0:03:05]} Ra4 {[%emt 0:03:08]} 26. Rb8+ {[%emt 0:03:04]} Nf8 {[%emt 0:00:05]} 27. Bd5 {[%emt 0:00:47]} Bxd5 {[%emt 0:01:12]} 28. Nxd5 {[%emt 0:24:41]} Bd4 {[%emt 0:00:12]} 29. Nb6 {[%emt 0:00:00]} Ra7 {[%emt 0:01:34]} 30. g3 {[%emt 0:00:00]} Kg7 {[%emt 0:00:08]} 31. Kg2 {[%emt 0:00:00]} Ra2 {[%emt 0:00:20]} 32. Nc4 {[%emt 0:00:00]} Ne6 {[%emt 0:03:18]} 33. Rb7 {[%emt 0:00:00]} Nd8 {[%emt 0:05:23]} 34. Rd7 {[%emt 0:00:00]} Nc6 {[%emt 0:00:36]} 35. Rc7 {[%emt 0:00:00]} Rc2 {[%emt 0:09:53]} 36. Na3 {[%emt 0:00:00]} Ra2 {[%emt 0:00:02]} 37. Nb5 {[%emt 0:00:00]} Ne5 {[%emt 0:00:06]} 38. Nxd4 {[%emt 0:00:00]} cxd4 {[%emt 0:00:01]} 39. Rc5 {[%emt 0:00:00]} Kf6 {[%emt 0:00:13]} 40. Rd1 {[%emt 0:00:00]} d3 {[%emt 0:00:49]} 41. h3 {[%emt 0:01:17]} h5 {[%emt 0:02:03]} 42. Kf1 {[%emt 0:00:39]} h4 {[%emt 0:09:57]} 43. f4 {[%emt 0:00:00]} Nf3 {[%emt 0:00:00]} 44. Rxd3 {[%emt 0:00:00]} Nd2+ {[%emt 0:00:00]} 45. Kg1 {[%emt 0:00:00]} hxg3 {[%emt 0:00:00]} 46. Re5 {[%emt 0:00:00]} g2 {[%emt 0:00:00]} 47. Rg5 {[%emt 0:00:00]} Ne4 {[%emt 0:00:00]} 48. Rxg2 {[%emt 0:00:00]} Ra1+ {[%emt 0:00:00]} 49. Kh2 {[%emt 0:00:00]} Rf1 {[%emt 0:00:00]} 50. Rg4 {[%emt 0:00:00]} Nf2 {[%emt 0:00:00]} 51. Kg2 {[%emt 0:00:00]} Nxd3 {[%emt 0:00:00]} 52. Kxf1 {[%emt 0:00:00]} Kf5 {[%emt 0:00:00]} 53. Rg5+ {[%emt 0:00:00]} Kxf4 {[%emt 0:00:00]} 54. Ra5 {[%emt 0:00:00]} Ne5 {[%emt 0:00:00]} 55. Kf2 {[%emt 0:00:00]} g5 {[%emt 0:00:00]} 56. Ra6 {[%emt 0:00:00]} Kf5 {[%emt 0:00:00]} 57. Kg3 {[%emt 0:00:00]} f6 {[%emt 0:00:00]} 58. Kf2 {[%emt 0:00:00]} Ng6 {[%emt 0:00:00]} 59. Kf3 {[%emt 0:00:12]} Ne5+ {[%emt 0:00:00]} 60. Ke3 {[%emt 0:00:03]} Kg6 {[%emt 0:00:00]} 61. Ke4 {[%emt 0:00:25]} g4 {[%emt 0:00:00]} 62. h4 {[%emt 0:01:57]} Nf3 {[%emt 0:00:00]} 63. Kf4 {[%emt 0:03:17]} Nxh4 {[%emt 0:00:00]} 64. Ra5 {[%emt 0:00:13]} Nf3 {[%emt 0:00:00]} 65. Kxg4 {[%emt 0:00:06]} Ng5 {[%emt 0:00:00]} 66. Ra8 {[%emt 0:00:07]} Ne6 {[%emt 0:00:00]} 67. Ra6 {[%emt 0:00:17]} Ng7 {[%emt 0:00:00]} 68. Kf4 {[%emt 0:00:26]} Nh5+ {[%emt 0:00:00]} 69. Ke4 {[%emt 0:00:06]} Ng7 {[%emt 0:00:00]} 70. Kd5 {[%emt 0:00:07]} Nh5 {[%emt 0:00:00]} 71. Kd6 {[%emt 0:00:23]} Ng7 {[%emt 0:00:00]} 72. Ke7 {[%emt 0:00:41]} Nh5 {[%emt 0:00:00]} 73. Rb6 {[%emt 0:00:35]} Kg5 {[%emt 0:00:00]} 74. Kf7 {[%emt 0:00:34]} f5 {[%emt 0:00:00]} 75. Rb5 {[%emt 0:00:28]} Kg4 {[%emt 0:00:00]} 76. Ke6 {[%emt 0:02:22]} f4 {[%emt 0:00:00]} 77. Rb4 {[%emt 0:00:22]} Ng3 {[%emt 0:00:00]} 78. Ke5 {[%emt 0:00:29]} Nh5 {[%emt 0:00:00]} 79. Ke4 {[%emt 0:00:32]} Nf6+ {[%emt 0:00:00]} 80. Kd3 {[%emt 0:00:06]} Kg3 {[%emt 0:00:00]} 81. Rb6 {[%emt 0:01:21]} Ng4 {[%emt 0:00:00]} 82. Rb1 {[%emt 0:01:35]} f3 {[%emt 0:00:00]} 83. Rb8 {[%emt 0:01:30]} Kf4 {[%emt 0:00:00]} 84. Kd2 {[%emt 0:00:20]} Kg3 {[%emt 0:00:00]} 85. Rg8 {[%emt 0:00:22]} Kf4 {[%emt 0:00:00]} 86. Kd3 {[%emt 0:01:10]} Ne5+ {[%emt 0:00:00]} 87. Kd2 {[%emt 0:00:06]} Ng4 {[%emt 0:00:00]} 88. Rg7 {[%emt 0:00:30]} Kg3 {[%emt 0:00:00]} 89. Rf7 {[%emt 0:00:11]} Kg2 {[%emt 0:00:00]} 90. Rf4 {[%emt 0:00:19]} Kg3 {[%emt 0:00:00]} 91. Rf8 {[%emt 0:00:02]} Kg2 {[%emt 0:00:00]} 92. Ke1 {[%emt 0:00:21]} Kg3 {[%emt 0:00:00]} 93. Rg8 {[%emt 0:00:49]} Kf4 {[%emt 0:00:00]} 94. Kf1 {[%emt 0:00:42]} Kg3 {[%emt 0:00:00]} 95. Rf8 {[%emt 0:00:51]} Nh2+ {[%emt 0:00:00]} 96. Ke1 {[%emt 0:00:19]} Ng4 {[%emt 0:00:00]} 97. Kd2 {[%emt 0:00:19]} Kg2 {[%emt 0:00:00]} 98. Rf7 {[%emt 0:00:14]} Kg3 {[%emt 0:00:00]} 99. Rh7 {[%emt 0:01:17]} Kg2 {[%emt 0:00:00]} 100. Rf7 $1 {[%emt 0:00:38]} Kg3 {[%emt 0:00:00]} 101. Rf5 {[%emt 0:00:39]} Kg2 {[%emt 0:00:00]} 102. Rg5 {[%emt 0:00:09]} Kg3 {[%emt 0:00:00]} 103. Ke1 {[%emt 0:00:50]} Kf4 {[%emt 0:00:00]} 104. Rg8 {[%emt 0:00:14]} Kg3 {[%emt 0:00:00]} 105. Kf1 {[%emt 0:00:09]} Kf4 {[%emt 0:00:00]} 106. Ra8 {[%emt 0:00:21]} Kg3 {[%emt 0:00:00]} 107. Ra3 {[%emt 0:01:01]} Kf4 {[%emt 0:00:00]} 108. Rb3 {[%emt 0:00:27]} Kg3 {[%emt 0:00:00]} 109. Rb2 {[%emt 0:00:34]} Kf4 {[%emt 0:00:00]} 110. Rb8 {[%emt 0:00:24]} Kg3 {[%emt 0:00:00]} 111. Rg8 {[%emt 0:00:41]} Kf4 {[%emt 0:00:00]} 112. Ke1 {[%emt 0:00:06]} Kg3 {[%emt 0:00:00]} 113. Kd2 {[%emt 0:00:06]} Kf4 {[%emt 0:00:00]} 114. Kd3 {[%emt 0:00:35]} Kg3 {[%emt 0:00:00]} 115. Rf8 {[%emt 0:00:29]} Kg2 {[%emt 0:00:00]} 116. Kd2 {[%emt 0:00:14]} Kg3 {[%emt 0:00:00]} 117. Rg8 {[%emt 0:00:35]} Kf4 {[%emt 0:00:00]} 118. Kd3 {[%emt 0:00:23]} Kg3 {[%emt 0:00:00]} 119. Rg7 {[%emt 0:00:32]} Kf4 {[%emt 0:00:00]} 120. Rg8 $1 {[%emt 0:00:29]} Kg3 {[%emt 0:00:00]} 121. Rf8 {[%emt 0:00:08]} Kg2 {[%emt 0:00:04]} 122. Kd2 {[%emt 0:00:44]} Kg3 {[%emt 0:00:02]} 123. Rh8 {[%emt 0:00:37]} Kg2 {[%emt 0:00:02]} 124. Rf8 $1 {[%emt 0:00:11]} Kg3 {[%emt 0:00:02]} 125. Rf5 {[%emt 0:00:25]} Kg2 {[%emt 0:00:02]} 126. Rf4 {[%emt 0:00:07]} Kg3 {[%emt 0:00:02]} 127. Rf8 {[%emt 0:00:11]} Kg2 {[%emt 0:00:02]} 128. Ke1 {[%emt 0:00:49]} Kg3 {[%emt 0:00:02]} 129. Kf1 {[%emt 0:00:20]} Nh2+ {[%emt 0:00:03]} 130. Kg1 {[%emt 0:00:46]} Ng4 {[%emt 0:00:03]} 131. Rg8 {[%emt 0:00:12]} Kf4 {[%emt 0:00:01]} 132. Rg7 {[%emt 0:00:30]} Ke5 $2 {[%emt 0:59:10][%mdl 8192]} (132... Nf2 $11) 1/2-1/2

[Event "Chhattisgarh Masters GM 2022"]
[Site "Chhattisgarh"]
[Date "2022.09.21"]
[Round "3.6"]
[White "Liyanage, Ranindu Dilshan"]
[Black "Manigandan, S S"]
[Result "0-1"]
[ECO "D00"]
[WhiteElo "2306"]
[BlackElo "2131"]
[Annotator "TA"]
[PlyCount "178"]
[EventDate "2022.09.19"]
[EventCountry "IND"]
[SourceTitle "playchess.com"]
[Source "ChessBase"]
[SourceQuality "1"]
[TimeControl "5400+30"]

{[%evp 9,178,18,19,7,9,-33,-31,-39,-27,-36,-30,-36,-37,-63,-57,-64,-57,-39,-45,-64,-76,-72,-69,-185,-208,-172,-187,-375,-391,-500,-507,-492,-475,-452,-647,-662,-657,-644,-646,-588,-635,-644,-464,-425,-334,-637,-503,-505,-501,-481,-302,-291,-299,-287,-274,-370,-374,-477,-467,-435,-238,-239,0,-425,-284,-293,-284,-389,-363,-360,0,0,0,-254,-237,-241,-161,-170,-132,-130,-128,-215,-213,-228,-239,-226,-225,-204,-221,-299,-252,-300,-340,-338,-333,-397,-331,-546,-535,-531,-342,-331,-337,-341,0,-390,0,-323,-325,-489,-289,-312,-182,-250,-166,-184,-145,-436,-415,-913,-879,-2753,-2416,-958,-598,-531,0,-871,-284,-543,-524,-445,0,-506,-306,-286,-131,-131,-131,-131,-131,-131,-131,-131,-131,-131,-131,-448,-131,-131,-131,-131,-131,-1401,-1115,-1381,-1381,-1305,-960,-1239,-1206,-12842,-1151,-1143,-1136,-1116,-1028,-12843,-12843,-12844,-12844]} 1. d4 {[%emt 0:00:07] ChessBase II} e6 {[%emt 0:00:35]} 2. Nc3 {[%emt 0:01:24]} d5 {[%emt 0:00:08]} 3. Bf4 {[%emt 0:00:18]} Bd6 {[%emt 0:00:17]} 4. Bxd6 {[%emt 0:03:01]} cxd6 {[%emt 0:01:08]} 5. e4 {[%emt 0:01:53]} dxe4 {[%emt 0:00:46]} 6. Nxe4 {[%emt 0:00:29] D00: 1 d4 d5: Unusual lines.} Nf6 {[%emt 0:00:52] [#] Inhibits Qg4.} 7. Ng3 $146 {[%emt 0:00:56]} ({Predecessor:} 7. Bb5+ Nc6 8. Nxf6+ Qxf6 9. Nf3 O-O 10. O-O Ne7 11. Re1 b6 12. Bd3 Bb7 13. Be4 Bxe4 14. Rxe4 {½-½ (53) Tregubov,P (2571)-Marcelin,C (2476) Montpellier 2015 CBM 166 Extra [ChessBase II]}) 7... Qb6 {[%emt 0:05:16]} 8. b3 {[%emt 0:04:28] Black is slightly better.} e5 {[%emt 0:05:34][%cal Be6e5,Be5e4][%mdl 32]} 9. Nf3 {[%emt 0:06:08]} e4 {[%emt 0:20:11] Prevents Bd3.} 10. Nd2 {[%emt 0:01:20]} d5 {[%emt 0:14:45]} 11. c4 {[%emt 0:04:27]} Qxd4 {[%emt 0:02:22]} 12. cxd5 {[%emt 0:04:12]} e3 {[%emt 0:11:55]} (12... Nxd5 13. Bb5+ Nc6 14. Ndxe4 Qb4+ 15. Qd2 $11) (12... Qxd5 13. Ndxe4 Qa5+ 14. Qd2 Qxd2+ 15. Kxd2 $11) 13. fxe3 {[%emt 0:02:44]} Qxe3+ {[%emt 0:01:52]} 14. Be2 {[%emt 0:10:06]} O-O $1 {[%emt 0:29:11] Black has more active pieces. The white rooks are badly placed.} (14... Nxd5 15. Nc4 Qe6 16. O-O $14) 15. Nc4 {[%emt 0:01:02]} Qc5 {[%emt 0:00:14]} 16. Bf3 {[%emt 0:04:52]} (16. Qd2 $15) 16... Re8+ $19 {[%emt 0:00:32]} (16... b5 17. Nd2 $17) 17. Kf1 {[%emt 0:00:08]} b5 $40 {[%emt 0:00:33][%cal Bb7b5,Bb5b4][%mdl 160] Black goes for the king.} 18. Na5 {[%emt 0:03:59]} (18. d6 $2 bxc4 $1 19. b4 Qxb4 $19) (18. Nb2) 18... Qb4 {[%emt 0:00:26]} 19. h3 {[%emt 0:07:07]} (19. Nc6 Nxc6 20. dxc6 Bg4 $19) 19... Qxa5 {[%emt 0:00:45]} 20. d6 {[%emt 0:00:05] [#]} Qb6 {[%emt 0:01:13][%cal Ob5b4] Inhibits Qd4.} 21. Bxa8 {[%emt 0:00:38]} (21. Qd2 Nc6) 21... b4 {[%emt 0:01:28]} 22. Rc1 {[%emt 0:06:16]} Ba6+ {[%emt 0:00:37]} 23. Rc4 {[%emt 0:00:05]} Nbd7 {[%emt 0:00:42]} 24. Bf3 {[%emt 0:00:46]} Ne5 {[%emt 0:00:35][%mdl 64] Pin. Pair of Knights!} 25. Be2 {[%emt 0:00:25]} Nxc4 {[%emt 0:00:10]} 26. bxc4 {[%emt 0:02:41]} Qc5 {[%emt 0:00:50] ...h5 is the strong threat.} (26... Rd8 $2 27. Qe1 $19) 27. Bd3 $2 {[%emt 0:14:12]} ({Of course not} 27. d7 Rd8 28. Qc1 Rxd7 $19) (27. Qd2) 27... Bxc4 {[%emt 0:00:30]} 28. Bxc4 {[%emt 0:00:12]} Qxc4+ {[%emt 0:00:03]} 29. Kg1 {[%emt 0:00:06]} Rd8 {[%emt 0:00:46]} 30. Kh2 {[%emt 0:00:05]} Qf4 {[%emt 0:00:21] Inhibits Qd2.} ({Avoid the trap} 30... Qxa2 $2 31. Qd4 $19) 31. Rf1 {[%emt 0:01:47]} Qxd6 {[%emt 0:00:12]} 32. Qb3 {[%emt 0:00:04]} a5 {[%emt 0:00:21]} 33. Rf3 {[%emt 0:01:00]} h5 {[%emt 0:01:02]} 34. Qc4 {[%emt 0:00:06]} Qd5 {[%emt 0:00:21]} (34... g6 $142 {And now ...Kg7 would win.} 35. Rf1 Kg7) 35. Qc7 {[%emt 0:00:58]} Qd6 $2 {[%emt 0:01:27]} (35... Ne8 36. Qe7 Rc8) 36. Qc4 {[%emt 0:00:26]} Qd4 {[%emt 0:00:00]} 37. Qc7 {[%emt 0:00:20]} Rd5 {[%emt 0:00:25]} 38. Qc8+ {[%emt 0:01:46]} Kh7 $1 {[%emt 0:00:29]} ({Don't blunder} 38... Rd8 $2 39. Qc7 Qd6 40. Qxd6 Rxd6 41. Nf5 $19) 39. Qc2+ {[%emt 0:00:17]} Kg8 {[%emt 0:00:23] aiming for ...Qe5.} 40. Qc8+ $1 {[%emt 0:00:33]} Rd8 {[%emt 0:00:04]} 41. Qc7 {[%emt 0:00:23]} g6 $1 {[%emt 0:00:00]} 42. Qxa5 {[%emt 0:00:00]} h4 {[%emt 0:00:00]} 43. Nf1 {[%emt 0:00:00]} Rd5 {[%emt 0:00:00]} 44. Qc7 {[%emt 0:00:00]} Rd6 {[%emt 0:00:00]} 45. Qb7 {[%emt 0:00:00]} (45. a3 $17 {was called for.}) 45... Kg7 {[%emt 0:00:00] The board is on fire.} 46. Qc7 {[%emt 0:00:00]} Nd7 {[%emt 0:02:19]} 47. Qc1 {[%emt 0:00:00]} Ne5 {[%emt 0:01:40]} 48. Rf4 {[%emt 0:00:00]} Qc3 {[%emt 0:00:02]} 49. Qb1 {[%emt 0:00:00]} Rd4 {[%emt 0:01:00]} 50. Rf2 {[%emt 0:00:00]} Qc7 {[%emt 0:00:32]} 51. Kh1 {[%emt 0:00:00]} Qd6 {[%emt 0:00:05]} 52. Qb3 {[%emt 0:00:00]} Rd3 {[%emt 0:00:18] Prevents Qe3.} 53. Qb2 {[%emt 0:00:00]} (53. Qa4) 53... Rd1 {[%emt 0:00:47]} 54. Kg1 {[%emt 0:00:00]} f6 {[%emt 0:00:24]} 55. Qe2 {[%emt 0:00:00]} Qd4 {[%emt 0:00:53][%cal Od1f1]} 56. Kh2 {[%emt 0:00:00]} Qd6 {[%emt 0:00:27]} 57. Kg1 $1 {[%emt 0:00:00]} Qd4 {[%emt 0:00:36][%cal Od1f1] Inhibits Qe3.} 58. Kh2 $1 {[%emt 0:00:00]} Rd3 {[%emt 0:00:27] Against Qe3} 59. Kg1 {[%emt 0:03:06]} (59. Qc2 {keeps fighting.}) 59... Qd6 {[%emt 0:00:36]} (59... g5 $142 60. Qb2 Rc3) 60. Qe4 {[%emt 0:02:21]} Rd4 {[%emt 0:00:27]} (60... Qc5 $142 61. Qf4 Qb6) 61. Qb7+ {[%emt 0:00:37]} (61. Qe3 $142) 61... Nf7 {[%emt 0:00:33]} 62. Ne3 {[%emt 0:01:10]} Rd3 {[%emt 0:00:17]} 63. Nf1 $2 {[%emt 0:02:02][%mdl 8192]} (63. Qe4 $17) 63... Qd4 {[%emt 0:00:07]} 64. Qc7 {[%emt 0:00:13]} (64. Qc8 $142) 64... Rd1 {[%emt 0:00:59][%cal Od1f1] ( -> ...Rxf1+!)} 65. Qc2 {[%emt 0:00:34]} Nd6 {[%emt 0:00:37] Hoping for ...Ne4.} 66. Kh2 {[%emt 0:01:47]} Qe5+ {[%emt 0:00:31]} 67. Kg1 {[%emt 0:00:06]} Qd4 {[%emt 0:00:09]} (67... Ra1 $142 68. Qc7+ Kh6) 68. Kh2 $1 {[%emt 0:00:03]} Nc4 $2 {[%emt 0:00:47]} (68... Ne4 69. Rf4 Qd6 70. Qxd1 Qxd1 71. Rxe4 Qxf1 72. Rxb4 g5 73. Rb7+ Kg6) 69. Rf3 $2 {[%emt 0:02:27]} (69. Qe2 Kf7 70. Qf3) 69... Ne5 {[%emt 0:00:30]} 70. Rf2 {[%emt 0:01:13]} Nc4 {[%emt 0:00:28]} 71. Rf3 $1 {[%emt 0:00:05]} Qe5+ {[%emt 0:00:25]} 72. Kg1 {[%emt 0:00:25]} Ne3 {[%emt 0:00:38]} (72... Qc5+ $19 {is more deadly.} 73. Kh1 Qd5) 73. Qe2 $17 {[%emt 0:01:09]} Rxf1+ {[%emt 0:00:22]} 74. Rxf1 {[%emt 0:00:06]} Nxf1 {[%emt 0:00:03]} 75. Qxf1 {[%emt 0:00:42][%mdl 4096] Endgame KQ-KQ} Qd4+ {[%emt 0:00:28]} 76. Kh1 {[%emt 0:00:56]} Kf7 {[%emt 0:00:05]} 77. Qb1 {[%emt 0:02:48]} Qc3 {[%emt 0:00:23]} 78. Qd1 $2 {[%emt 0:00:18][%mdl 8192]} (78. Qf1 $17) 78... g5 $19 {[%emt 0:01:15] Strongly threatening ...Ke6.} 79. Qd5+ {[%emt 0:03:16]} Ke7 {[%emt 0:00:10]} 80. Qb7+ {[%emt 0:01:20]} Kd6 {[%emt 0:00:11]} 81. Qb6+ $2 {[%emt 0:00:33][%mdl 8192]} (81. Kh2 $17) 81... Kd5 {[%emt 0:00:08] Black is clearly winning.} 82. Qa6 {[%emt 0:00:30]} Ke4 {[%emt 0:00:16]} 83. Qe2+ {[%emt 0:00:53] [#]} Kd4 $1 {[%emt 0:00:05]} 84. Qf2+ {[%emt 0:00:32] [#]} Kd3 $1 {[%emt 0:00:13]} 85. Kh2 {[%emt 0:01:05]} Qe5+ {[%emt 0:01:18]} (85... Qc7+ $142 86. Kg1 Qc1+ 87. Qf1+ Qxf1+ 88. Kxf1 Ke3) 86. Kh1 {[%emt 0:00:08]} Qa1+ {[%emt 0:01:51]} 87. Kh2 {[%emt 0:00:06]} Qc3 {[%emt 0:00:22] White must now prevent ...Qc7+.} 88. Kh1 {[%emt 0:00:42]} Qc1+ {[%emt 0:00:07]} 89. Kh2 {[%emt 0:00:25]} Qf4+ {[%emt 0:00:06] Weighted Error Value: White=0.36/Black=0.51} 0-1